[Event "January 2 Early 2024"]
[Site "https://www.chess.com"]
[Date "2024.01.02"]
[Round "5"]
[White "Kambrath, Yannick"]
[Black "Rodriguez Avila, Alvaro"]
[Result "1-0"]
[Board "122"]
[TimeControl "180+1"]
[WhiteFideId "20632525"]
[BlackFideId "24570249"]
[WhiteElo "2538"]
[BlackElo "2275"]
[WhiteTeam "FRA"]
[BlackTeam "ESP"]
[WhiteClock "0:00:05"]
[BlackClock "0:00:05"]

1. e4 {[%clk 0:03:00]}  c5 {[%clk 0:02:58]} 2. Nf3 {[%clk 0:02:54]}  g6 {[%clk 0:02:59]} 3. c3 {[%clk 0:02:52]}  Bg7 {[%clk 0:02:59]} 4. d4 {[%clk 0:02:52]}  cxd4 {[%clk 0:03:00]} 5. cxd4 {[%clk 0:02:53]}  d5 {[%clk 0:03:01]} 6. e5 {[%clk 0:02:53]}  Bg4 {[%clk 0:03:00]} 7. h3 {[%clk 0:02:53]}  Bxf3 {[%clk 0:03:00]} 8. Qxf3 {[%clk 0:02:54]}  Nc6 {[%clk 0:03:01]} 9. Bb5 {[%clk 0:02:39]}  e6 {[%clk 0:03:01]} 10. O-O {[%clk 0:02:38]}  Ne7 {[%clk 0:03:02]} 11. Nc3 {[%clk 0:02:35]}  O-O {[%clk 0:03:02]} 12. Bxc6 {[%clk 0:02:35]}  Nxc6 {[%clk 0:03:02]} 13. Be3 {[%clk 0:02:30]}  f6 {[%clk 0:03:02]} 14. Qg4 {[%clk 0:02:17]}  Qd7 {[%clk 0:03:00]} 15. exf6 {[%clk 0:02:10]}  Bxf6 {[%clk 0:03:00]} 16. Rad1 {[%clk 0:02:09]}  Ne7 {[%clk 0:02:55]} 17. Rfe1 {[%clk 0:01:53]}  Nf5 {[%clk 0:02:55]} 18. Bg5 {[%clk 0:01:37]}  Bxd4 {[%clk 0:02:44]} 19. Rxd4 {[%clk 0:01:30]}  Nxd4 {[%clk 0:02:39]} 20. Qxd4 {[%clk 0:01:31]}  Rac8 {[%clk 0:02:35]} 21. Bh6 {[%clk 0:01:23]}  Rf7 {[%clk 0:02:30]} 22. Qe5 {[%clk 0:01:18]}  Rc6 {[%clk 0:01:41]} 23. h4 {[%clk 0:01:07]}  Qd6 {[%clk 0:01:33]} 24. Qe2 {[%clk 0:00:47]}  Rf5 {[%clk 0:01:09]} 25. Nb5 {[%clk 0:00:27]}  Qc5 {[%clk 0:01:01]} 26. Be3 {[%clk 0:00:16]}  Qc2 {[%clk 0:00:29]} 27. Nd4 {[%clk 0:00:13]}  Qxb2 {[%clk 0:00:30]} 28. Nxc6 {[%clk 0:00:12]}  Qxe2 {[%clk 0:00:28]} 29. Ne7+ {[%clk 0:00:08]}  Kf7 {[%clk 0:00:28]} 30. Rxe2 {[%clk 0:00:08]}  Kxe7 {[%clk 0:00:29]} 31. Bxa7 {[%clk 0:00:08]}  Kd7 {[%clk 0:00:27]} 32. Bd4 {[%clk 0:00:07]}  Rf4 {[%clk 0:00:28]} 33. Be5 {[%clk 0:00:05]}  Rxh4 {[%clk 0:00:26]} 34. f4 {[%clk 0:00:05]}  h6 {[%clk 0:00:22]} 35. g3 {[%clk 0:00:05]}  Rg4 {[%clk 0:00:21]} 36. Kg2 {[%clk 0:00:05]}  h5 {[%clk 0:00:18]} 37. Kf3 {[%clk 0:00:05]}  g5 {[%clk 0:00:18]} 38. Rc2 {[%clk 0:00:04]}  gxf4 {[%clk 0:00:18]} 39. Bxf4 {[%clk 0:00:05]}  Rg8 {[%clk 0:00:13]} 40. Rc7+ {[%clk 0:00:05]}  Kd8 {[%clk 0:00:13]} 41. Rxb7 {[%clk 0:00:06]}  Rf8 {[%clk 0:00:10]} 42. Ke3 {[%clk 0:00:05]}  Kc8 {[%clk 0:00:05]} 43. Rb8+ {[%clk 0:00:05]} 1-0

[Event "January 2 Early 2024"]
[Site "https://www.chess.com"]
[Date "2024.01.02"]
[Round "5"]
[White "Rietze, Clemens, Dr."]
[Black "RaneshRatnesan"]
[Result "1-0"]
[Board "126"]
[TimeControl "180+1"]
[WhiteFideId "24620351"]
[WhiteElo "2520"]
[BlackElo "2237"]
[WhiteTeam "GER"]
[WhiteClock "0:00:03"]
[BlackClock "0:00:09"]

1. d4 {[%clk 0:03:00]}  d5 {[%clk 0:02:58]} 2. c4 {[%clk 0:02:59]}  e6 {[%clk 0:02:58]} 3. Nf3 {[%clk 0:02:59]}  Nf6 {[%clk 0:02:58]} 4. g3 {[%clk 0:02:59]}  dxc4 {[%clk 0:02:55]} 5. Bg2 {[%clk 0:02:56]}  Nc6 {[%clk 0:02:53]} 6. O-O {[%clk 0:02:53]}  a6 {[%clk 0:02:53]} 7. e3 {[%clk 0:02:45]}  Bd6 {[%clk 0:02:44]} 8. Qe2 {[%clk 0:02:40]}  O-O {[%clk 0:02:22]} 9. Qxc4 {[%clk 0:02:31]}  e5 {[%clk 0:02:12]} 10. d5 {[%clk 0:02:30]}  Ne7 {[%clk 0:02:04]} 11. Nc3 {[%clk 0:02:29]}  c6 {[%clk 0:02:00]} 12. dxc6 {[%clk 0:02:05]}  Nxc6 {[%clk 0:02:01]} 13. Rd1 {[%clk 0:02:05]}  Qe7 {[%clk 0:01:54]} 14. e4 {[%clk 0:02:00]}  h6 {[%clk 0:01:53]} 15. Nd5 {[%clk 0:01:56]}  Nxd5 {[%clk 0:01:40]} 16. exd5 {[%clk 0:01:57]}  Nb8 {[%clk 0:01:40]} 17. Re1 {[%clk 0:01:48]}  b5 {[%clk 0:01:33]} 18. Qb3 {[%clk 0:01:42]}  Qf6 {[%clk 0:01:26]} 19. Bd2 {[%clk 0:01:37]}  Bb7 {[%clk 0:01:21]} 20. a4 {[%clk 0:01:28]}  b4 {[%clk 0:01:02]} 21. Bxb4 {[%clk 0:01:23]}  Bxb4 {[%clk 0:01:02]} 22. Qxb4 {[%clk 0:01:23]}  Bxd5 {[%clk 0:01:02]} 23. Nxe5 {[%clk 0:01:19]}  Bxg2 {[%clk 0:01:02]} 24. Kxg2 {[%clk 0:01:20]}  Nc6 {[%clk 0:01:02]} 25. Nxc6 {[%clk 0:01:13]}  Qxc6+ {[%clk 0:01:03]} 26. Qe4 {[%clk 0:01:13]}  Qf6 {[%clk 0:01:02]} 27. b4 {[%clk 0:01:09]}  Rfb8 {[%clk 0:00:59]} 28. Rab1 {[%clk 0:01:01]}  Ra7 {[%clk 0:00:59]} 29. Rec1 {[%clk 0:00:47]}  Re7 {[%clk 0:00:53]} 30. Qf3 {[%clk 0:00:30]}  Rb6 {[%clk 0:00:38]} 31. b5 {[%clk 0:00:19]}  axb5 {[%clk 0:00:37]} 32. Qa8+ {[%clk 0:00:12]}  Kh7 {[%clk 0:00:34]} 33. axb5 {[%clk 0:00:12]}  Qe5 {[%clk 0:00:26]} 34. Qf3 {[%clk 0:00:11]}  g6 {[%clk 0:00:24]} 35. Qd3 {[%clk 0:00:10]}  Reb7 {[%clk 0:00:21]} 36. Re1 {[%clk 0:00:08]}  Qf6 {[%clk 0:00:14]} 37. Qc4 {[%clk 0:00:06]}  Re7 {[%clk 0:00:12]} 38. Rxe7 {[%clk 0:00:05]}  Qxe7 {[%clk 0:00:13]} 39. Qb4 {[%clk 0:00:04]}  Qe5 {[%clk 0:00:13]} 40. Qc4 {[%clk 0:00:04]}  Qf5 {[%clk 0:00:12]} 41. Rb2 {[%clk 0:00:02]}  h5 {[%clk 0:00:13]} 42. h4 {[%clk 0:00:02]}  Kg7 {[%clk 0:00:10]} 43. Rb3 {[%clk 0:00:02]}  Kh7 {[%clk 0:00:10]} 44. Rb2 {[%clk 0:00:02]}  Qf6 {[%clk 0:00:09]} 45. Rb3 {[%clk 0:00:02]}  Qf5 {[%clk 0:00:09]} 46. Rf3 {[%clk 0:00:02]}  Qxb5 {[%clk 0:00:08]} 47. Qxf7+ {[%clk 0:00:02]}  Kh6 {[%clk 0:00:08]} 48. Qf8+ {[%clk 0:00:02]}  Kh7 {[%clk 0:00:09]} 49. Rf7# {[%clk 0:00:03]} 1-0

[Event "January 2 Early 2024"]
[Site "https://www.chess.com"]
[Date "2024.01.02"]
[Round "5"]
[White "Goncalves, Davi Sulzbacher"]
[Black "Lye, Sverre"]
[Result "1-0"]
[Board "127"]
[TimeControl "180+1"]
[WhiteFideId "2154510"]
[BlackFideId "1539353"]
[WhiteElo "2517"]
[BlackElo "2227"]
[WhiteTeam "BRA"]
[BlackTeam "NOR"]
[WhiteClock "0:01:28"]
[BlackClock "0:01:01"]

1. e4 {[%clk 0:03:00]}  c5 {[%clk 0:02:59]} 2. c3 {[%clk 0:02:59]}  d5 {[%clk 0:02:53]} 3. exd5 {[%clk 0:02:58]}  Nf6 {[%clk 0:02:54]} 4. Bb5+ {[%clk 0:02:48]}  Nbd7 {[%clk 0:02:48]} 5. c4 {[%clk 0:02:44]}  a6 {[%clk 0:02:44]} 6. Bxd7+ {[%clk 0:02:29]}  Bxd7 {[%clk 0:02:42]} 7. Nf3 {[%clk 0:02:24]}  e6 {[%clk 0:02:37]} 8. Nc3 {[%clk 0:02:06]}  exd5 {[%clk 0:02:33]} 9. cxd5 {[%clk 0:02:06]}  Bd6 {[%clk 0:02:30]} 10. O-O {[%clk 0:02:04]}  O-O {[%clk 0:02:30]} 11. d4 {[%clk 0:02:02]}  Bg4 {[%clk 0:02:22]} 12. dxc5 {[%clk 0:01:57]}  Bxc5 {[%clk 0:02:21]} 13. Bg5 {[%clk 0:01:57]}  Be7 {[%clk 0:01:57]} 14. Re1 {[%clk 0:01:34]}  Re8 {[%clk 0:01:35]} 15. Qd3 {[%clk 0:01:32]}  Nxd5 {[%clk 0:01:22]} 16. Qxd5 {[%clk 0:01:31]}  Qxd5 {[%clk 0:01:04]} 17. Nxd5 {[%clk 0:01:29]}  Bxf3 {[%clk 0:01:01]} 18. Nxe7+ {[%clk 0:01:28]} 1-0

[Event "January 2 Early 2024"]
[Site "https://www.chess.com"]
[Date "2024.01.02"]
[Round "5"]
[White "xakevicius91"]
[Black "Kohler, Aran"]
[Result "1-0"]
[Board "128"]
[TimeControl "180+1"]
[BlackFideId "1002856"]
[WhiteElo "2517"]
[BlackElo "2225"]
[BlackTeam "NED"]
[WhiteClock "0:00:06"]
[BlackClock "0:00:00"]

1. e4 {[%clk 0:03:00]}  c6 {[%clk 0:02:59]} 2. d4 {[%clk 0:02:56]}  d5 {[%clk 0:03:00]} 3. e5 {[%clk 0:02:57]}  c5 {[%clk 0:02:59]} 4. Nf3 {[%clk 0:02:56]}  Bg4 {[%clk 0:02:50]} 5. dxc5 {[%clk 0:02:55]}  e6 {[%clk 0:02:44]} 6. Be3 {[%clk 0:02:54]}  Nc6 {[%clk 0:02:41]} 7. c3 {[%clk 0:02:44]}  Bxf3 {[%clk 0:02:35]} 8. Qxf3 {[%clk 0:02:45]}  Nxe5 {[%clk 0:02:35]} 9. Bb5+ {[%clk 0:02:46]}  Nc6 {[%clk 0:02:35]} 10. c4 {[%clk 0:02:46]}  Ne7 {[%clk 0:02:33]} 11. Nc3 {[%clk 0:02:46]}  a6 {[%clk 0:02:29]} 12. Ba4 {[%clk 0:02:42]}  dxc4 {[%clk 0:02:20]} 13. Rd1 {[%clk 0:02:13]}  Qa5 {[%clk 0:02:20]} 14. O-O {[%clk 0:02:12]}  Rc8 {[%clk 0:01:49]} 15. Qe2 {[%clk 0:01:21]}  Ng6 {[%clk 0:01:44]} 16. Qxc4 {[%clk 0:01:20]}  Be7 {[%clk 0:01:43]} 17. b4 {[%clk 0:01:20]}  Qc7 {[%clk 0:01:40]} 18. Bc2 {[%clk 0:01:19]}  O-O {[%clk 0:01:39]} 19. Qe2 {[%clk 0:01:16]}  Nxb4 {[%clk 0:01:38]} 20. Bxg6 {[%clk 0:01:13]}  hxg6 {[%clk 0:01:36]} 21. Ne4 {[%clk 0:01:12]}  Qc6 {[%clk 0:01:25]} 22. Bf4 {[%clk 0:01:07]}  Nd5 {[%clk 0:01:25]} 23. Bd6 {[%clk 0:01:07]}  Bxd6 {[%clk 0:01:24]} 24. cxd6 {[%clk 0:01:02]}  Rfd8 {[%clk 0:01:21]} 25. Qf3 {[%clk 0:00:59]}  Nf6 {[%clk 0:01:18]} 26. Nxf6+ {[%clk 0:00:57]}  gxf6 {[%clk 0:01:18]} 27. Qxf6 {[%clk 0:00:57]}  Rxd6 {[%clk 0:01:18]} 28. Rde1 {[%clk 0:00:53]}  Qc3 {[%clk 0:01:12]} 29. Qe7 {[%clk 0:00:48]}  Rb6 {[%clk 0:00:58]} 30. h4 {[%clk 0:00:42]}  Qc7 {[%clk 0:00:46]} 31. Qf6 {[%clk 0:00:42]}  e5 {[%clk 0:00:47]} 32. Qg5 {[%clk 0:00:32]}  Re6 {[%clk 0:00:45]} 33. h5 {[%clk 0:00:32]}  Qe7 {[%clk 0:00:44]} 34. Qg4 {[%clk 0:00:31]}  f5 {[%clk 0:00:42]} 35. Qg3 {[%clk 0:00:28]}  Kg7 {[%clk 0:00:41]} 36. hxg6 {[%clk 0:00:28]}  Rxg6 {[%clk 0:00:40]} 37. Qxe5+ {[%clk 0:00:25]}  Qxe5 {[%clk 0:00:40]} 38. Rxe5 {[%clk 0:00:26]}  f4 {[%clk 0:00:39]} 39. Re7+ {[%clk 0:00:25]}  Kf6 {[%clk 0:00:37]} 40. Rxb7 {[%clk 0:00:25]}  f3 {[%clk 0:00:38]} 41. Rb6+ {[%clk 0:00:22]}  Kf5 {[%clk 0:00:38]} 42. Rxg6 {[%clk 0:00:22]}  Kxg6 {[%clk 0:00:38]} 43. gxf3 {[%clk 0:00:22]}  Rc2 {[%clk 0:00:38]} 44. Ra1 {[%clk 0:00:22]}  Kf5 {[%clk 0:00:32]} 45. a4 {[%clk 0:00:20]}  Kf4 {[%clk 0:00:28]} 46. a5 {[%clk 0:00:17]}  Kxf3 {[%clk 0:00:27]} 47. Ra3+ {[%clk 0:00:18]}  Ke4 {[%clk 0:00:27]} 48. Kg2 {[%clk 0:00:18]}  Rc5 {[%clk 0:00:19]} 49. Ra4+ {[%clk 0:00:18]}  Kd5 {[%clk 0:00:18]} 50. Kg3 {[%clk 0:00:18]}  Kc6 {[%clk 0:00:17]} 51. f4 {[%clk 0:00:18]}  Kb5 {[%clk 0:00:17]} 52. Ra1 {[%clk 0:00:17]}  Kb4 {[%clk 0:00:16]} 53. Kg4 {[%clk 0:00:17]}  Rc4 {[%clk 0:00:16]} 54. Kg5 {[%clk 0:00:17]}  Rc5+ {[%clk 0:00:15]} 55. f5 {[%clk 0:00:18]}  Kb3 {[%clk 0:00:13]} 56. Kg6 {[%clk 0:00:17]}  Kb2 {[%clk 0:00:13]} 57. Ra4 {[%clk 0:00:12]}  Kb3 {[%clk 0:00:13]} 58. Rf4 {[%clk 0:00:11]}  Rxa5 {[%clk 0:00:13]} 59. f6 {[%clk 0:00:12]}  Rb5 {[%clk 0:00:13]} 60. Rf1 {[%clk 0:00:10]}  Rc5 {[%clk 0:00:11]} 61. f7 {[%clk 0:00:10]}  Rc8 {[%clk 0:00:11]} 62. Rf6 {[%clk 0:00:10]}  a5 {[%clk 0:00:10]} 63. Re6 {[%clk 0:00:08]}  Rf8 {[%clk 0:00:08]} 64. Kg7 {[%clk 0:00:08]}  Rxf7+ {[%clk 0:00:09]} 65. Kxf7 {[%clk 0:00:09]}  a4 {[%clk 0:00:09]} 66. Rb6+ {[%clk 0:00:10]}  Ka2 {[%clk 0:00:08]} 67. Ke6 {[%clk 0:00:11]}  a3 {[%clk 0:00:09]} 68. Kd5 {[%clk 0:00:12]}  Ka1 {[%clk 0:00:10]} 69. Kc4 {[%clk 0:00:10]}  a2 {[%clk 0:00:10]} 70. Kb3 {[%clk 0:00:06]}  Kb1 {[%clk 0:00:10]} 71. Rh6 {[%clk 0:00:06]}  a1=N+ {[%clk 0:00:09]} 72. Kc3 {[%clk 0:00:05]}  Ka2 {[%clk 0:00:10]} 73. Ra6+ {[%clk 0:00:03]}  Kb1 {[%clk 0:00:09]} 74. Rh6 {[%clk 0:00:03]}  Ka2 {[%clk 0:00:09]} 75. Rh2+ {[%clk 0:00:03]}  Ka3 {[%clk 0:00:09]} 76. Rh1 {[%clk 0:00:04]}  Nb3 {[%clk 0:00:08]} 77. Rh4 {[%clk 0:00:04]}  Nc5 {[%clk 0:00:05]} 78. Rh5 {[%clk 0:00:04]}  Na4+ {[%clk 0:00:05]} 79. Kc2 {[%clk 0:00:04]}  Kb4 {[%clk 0:00:04]} 80. Rh4+ {[%clk 0:00:04]}  Kb5 {[%clk 0:00:04]} 81. Kb3 {[%clk 0:00:05]}  Nc5+ {[%clk 0:00:04]} 82. Kc3 {[%clk 0:00:04]}  Na4+ {[%clk 0:00:05]} 83. Kb3 {[%clk 0:00:05]}  Nc5+ {[%clk 0:00:05]} 84. Ka3 {[%clk 0:00:06]}  Kc6 {[%clk 0:00:00]} 85. Rd4 {[%clk 0:00:06]} 1-0

[Event "January 2 Early 2024"]
[Site "https://www.chess.com"]
[Date "2024.01.02"]
[Round "5"]
[White "Lopusiewicz, Piotr"]
[Black "Z_Chess6"]
[Result "0-1"]
[Board "131"]
[TimeControl "180+1"]
[WhiteFideId "1116029"]
[WhiteElo "2505"]
[BlackElo "2115"]
[WhiteTeam "POL"]
[WhiteClock "0:00:00"]
[BlackClock "0:00:05"]

1. d4 {[%clk 0:03:00]}  d5 {[%clk 0:03:00]} 2. c4 {[%clk 0:03:00]}  e6 {[%clk 0:03:00]} 3. Nf3 {[%clk 0:03:01]}  Nf6 {[%clk 0:03:00]} 4. Nc3 {[%clk 0:03:01]}  Be7 {[%clk 0:03:00]} 5. g3 {[%clk 0:03:00]}  O-O {[%clk 0:03:00]} 6. Bg2 {[%clk 0:03:00]}  dxc4 {[%clk 0:03:00]} 7. Ne5 {[%clk 0:03:00]}  c5 {[%clk 0:03:01]} 8. dxc5 {[%clk 0:02:57]}  Qxd1+ {[%clk 0:02:58]} 9. Nxd1 {[%clk 0:02:58]}  Bxc5 {[%clk 0:02:59]} 10. Be3 {[%clk 0:02:58]}  Bxe3 {[%clk 0:02:48]} 11. Nxe3 {[%clk 0:02:57]}  Nc6 {[%clk 0:02:47]} 12. Nxc6 {[%clk 0:02:50]}  bxc6 {[%clk 0:02:47]} 13. Bxc6 {[%clk 0:02:46]}  Rb8 {[%clk 0:02:46]} 14. Nxc4 {[%clk 0:02:46]}  Ba6 {[%clk 0:02:46]} 15. b3 {[%clk 0:02:32]}  Rfc8 {[%clk 0:02:45]} 16. Na5 {[%clk 0:01:54]}  Rb6 {[%clk 0:01:49]} 17. Bf3 {[%clk 0:01:22]}  Rc5 {[%clk 0:01:44]} 18. Nc4 {[%clk 0:01:15]}  Bxc4 {[%clk 0:01:44]} 19. bxc4 {[%clk 0:01:15]}  Rxc4 {[%clk 0:01:44]} 20. O-O {[%clk 0:01:15]}  g5 {[%clk 0:01:38]} 21. Rfd1 {[%clk 0:00:59]}  g4 {[%clk 0:01:32]} 22. Bg2 {[%clk 0:00:55]}  Rb2 {[%clk 0:01:32]} 23. Bf1 {[%clk 0:00:46]}  Nd5 {[%clk 0:00:55]} 24. a4 {[%clk 0:00:26]}  Rcc2 {[%clk 0:00:41]} 25. Rd4 {[%clk 0:00:20]}  h5 {[%clk 0:00:32]} 26. Rad1 {[%clk 0:00:18]}  Nc3 {[%clk 0:00:27]} 27. Ra1 {[%clk 0:00:15]}  Nxe2+ {[%clk 0:00:27]} 28. Bxe2 {[%clk 0:00:16]}  Rxe2 {[%clk 0:00:27]} 29. Rf1 {[%clk 0:00:16]}  Ra2 {[%clk 0:00:26]} 30. Rc4 {[%clk 0:00:16]}  Kg7 {[%clk 0:00:25]} 31. Rf4 {[%clk 0:00:15]}  Kg6 {[%clk 0:00:23]} 32. Rc4 {[%clk 0:00:12]}  f6 {[%clk 0:00:16]} 33. Rb4 {[%clk 0:00:11]}  Kf5 {[%clk 0:00:16]} 34. Rf4+ {[%clk 0:00:10]}  Kg5 {[%clk 0:00:15]} 35. Rc4 {[%clk 0:00:09]}  f5 {[%clk 0:00:13]} 36. Rb4 {[%clk 0:00:09]}  h4 {[%clk 0:00:14]} 37. gxh4+ {[%clk 0:00:08]}  Kxh4 {[%clk 0:00:15]} 38. Rf4 {[%clk 0:00:07]}  Kg5 {[%clk 0:00:14]} 39. Rc4 {[%clk 0:00:08]}  Ra3 {[%clk 0:00:11]} 40. Kg2 {[%clk 0:00:07]}  Rea2 {[%clk 0:00:11]} 41. Re1 {[%clk 0:00:04]}  Rxa4 {[%clk 0:00:08]} 42. Rc6 {[%clk 0:00:03]}  Ra6 {[%clk 0:00:06]} 43. Rc7 {[%clk 0:00:03]}  Rd6 {[%clk 0:00:05]} 44. Re7 {[%clk 0:00:02]}  Rdd2 {[%clk 0:00:04]} 45. R1xe6 {[%clk 0:00:02]}  Rxf2+ {[%clk 0:00:04]} 46. Kg1 {[%clk 0:00:02]}  Rg2+ {[%clk 0:00:05]} 47. Kf1 {[%clk 0:00:02]}  Rxh2 {[%clk 0:00:05]} 48. Kg1 {[%clk 0:00:02]}  Rag2+ {[%clk 0:00:04]} 49. Kf1 {[%clk 0:00:02]}  Ra2 {[%clk 0:00:05]} 50. Kg1 {[%clk 0:00:03]}  Rhb2 {[%clk 0:00:05]} 51. Rf7 {[%clk 0:00:00]}  Rb1+ {[%clk 0:00:05]} 0-1

[Event "January 2 Early 2024"]
[Site "https://www.chess.com"]
[Date "2024.01.02"]
[Round "5"]
[White "Quirke, Jeffrey"]
[Black "Estrada Nieto, Julian"]
[Result "1/2-1/2"]
[Board "132"]
[TimeControl "180+1"]
[WhiteFideId "2013029"]
[BlackFideId "5101018"]
[WhiteElo "2062"]
[BlackElo "2502"]
[WhiteTeam "USA"]
[BlackTeam "ESP"]
[WhiteClock "0:00:15"]
[BlackClock "0:00:29"]

1. e4 {[%clk 0:02:52]}  e5 {[%clk 0:02:59]} 2. Nf3 {[%clk 0:02:50]}  Nc6 {[%clk 0:03:00]} 3. d3 {[%clk 0:02:50]}  Nf6 {[%clk 0:02:59]} 4. c3 {[%clk 0:02:48]}  d5 {[%clk 0:02:59]} 5. Nbd2 {[%clk 0:02:48]}  Be7 {[%clk 0:02:58]} 6. Be2 {[%clk 0:02:48]}  O-O {[%clk 0:02:58]} 7. O-O {[%clk 0:02:48]}  Re8 {[%clk 0:02:58]} 8. b4 {[%clk 0:02:48]}  a6 {[%clk 0:02:58]} 9. Bb2 {[%clk 0:02:46]}  Bf8 {[%clk 0:02:57]} 10. a3 {[%clk 0:02:43]}  Bg4 {[%clk 0:02:54]} 11. Re1 {[%clk 0:02:42]}  Qd7 {[%clk 0:02:52]} 12. Qc2 {[%clk 0:02:38]}  Rad8 {[%clk 0:02:51]} 13. h3 {[%clk 0:02:36]}  Bh5 {[%clk 0:02:50]} 14. Bf1 {[%clk 0:02:29]}  dxe4 {[%clk 0:02:42]} 15. dxe4 {[%clk 0:02:24]}  h6 {[%clk 0:02:28]} 16. Rad1 {[%clk 0:02:03]}  Qe7 {[%clk 0:02:25]} 17. g4 {[%clk 0:01:58]}  Bg6 {[%clk 0:02:25]} 18. Nh4 {[%clk 0:01:36]}  Bh7 {[%clk 0:02:23]} 19. Nf5 {[%clk 0:01:35]}  Bxf5 {[%clk 0:02:14]} 20. exf5 {[%clk 0:01:33]}  Nd5 {[%clk 0:01:59]} 21. Ne4 {[%clk 0:01:27]}  Nf4 {[%clk 0:01:59]} 22. Bc1 {[%clk 0:01:19]}  Qh4 {[%clk 0:01:54]} 23. Bxf4 {[%clk 0:01:12]}  exf4 {[%clk 0:01:54]} 24. Rxd8 {[%clk 0:00:45]}  Rxd8 {[%clk 0:01:50]} 25. Qc1 {[%clk 0:00:46]}  Ne5 {[%clk 0:01:20]} 26. Qxf4 {[%clk 0:00:45]}  Nd3 {[%clk 0:01:21]} 27. Bxd3 {[%clk 0:00:44]}  Rxd3 {[%clk 0:01:21]} 28. Re3 {[%clk 0:00:36]}  Rd1+ {[%clk 0:01:09]} 29. Kg2 {[%clk 0:00:37]}  Be7 {[%clk 0:01:01]} 30. f6 {[%clk 0:00:29]}  Bxf6 {[%clk 0:00:51]} 31. Nxf6+ {[%clk 0:00:29]}  Qxf6 {[%clk 0:00:50]} 32. Qxf6 {[%clk 0:00:29]}  gxf6 {[%clk 0:00:51]} 33. Re7 {[%clk 0:00:29]}  Ra1 {[%clk 0:00:48]} 34. Rxc7 {[%clk 0:00:25]}  b5 {[%clk 0:00:48]} 35. c4 {[%clk 0:00:21]}  bxc4 {[%clk 0:00:47]} 36. Rxc4 {[%clk 0:00:20]}  Rxa3 {[%clk 0:00:48]} 37. Rc6 {[%clk 0:00:20]}  Kg7 {[%clk 0:00:46]} 38. h4 {[%clk 0:00:16]}  Rb3 {[%clk 0:00:43]} 39. Rxa6 {[%clk 0:00:14]}  Rxb4 {[%clk 0:00:43]} 40. f3 {[%clk 0:00:15]}  Rc4 {[%clk 0:00:43]} 41. Kg3 {[%clk 0:00:15]}  Rd4 {[%clk 0:00:42]} 42. h5 {[%clk 0:00:15]}  Rb4 {[%clk 0:00:42]} 43. Rc6 {[%clk 0:00:15]}  Rb1 {[%clk 0:00:42]} 44. Ra6 {[%clk 0:00:15]}  Rg1+ {[%clk 0:00:42]} 45. Kf2 {[%clk 0:00:15]}  Rc1 {[%clk 0:00:42]} 46. Kg3 {[%clk 0:00:16]}  Rc3 {[%clk 0:00:42]} 47. Rb6 {[%clk 0:00:15]}  Ra3 {[%clk 0:00:41]} 48. Rc6 {[%clk 0:00:15]}  Rb3 {[%clk 0:00:41]} 49. Ra6 {[%clk 0:00:15]}  Rb7 {[%clk 0:00:41]} 50. Rc6 {[%clk 0:00:15]}  Re7 {[%clk 0:00:41]} 51. Rb6 {[%clk 0:00:15]}  Re5 {[%clk 0:00:41]} 52. Rc6 {[%clk 0:00:15]}  f5 {[%clk 0:00:41]} 53. Rb6 {[%clk 0:00:15]}  fxg4 {[%clk 0:00:41]} 54. fxg4 {[%clk 0:00:15]}  Rc5 {[%clk 0:00:41]} 55. Kh4 {[%clk 0:00:15]}  Rc4 {[%clk 0:00:38]} 56. Ra6 {[%clk 0:00:15]}  Rf4 {[%clk 0:00:38]} 57. Ra5 {[%clk 0:00:15]}  Rd4 {[%clk 0:00:36]} 58. Rb5 {[%clk 0:00:15]}  Rc4 {[%clk 0:00:36]} 59. Ra5 {[%clk 0:00:15]}  Rb4 {[%clk 0:00:36]} 60. Rc5 {[%clk 0:00:15]}  Rd4 {[%clk 0:00:35]} 61. Ra5 {[%clk 0:00:15]}  Re4 {[%clk 0:00:36]} 62. Rc5 {[%clk 0:00:15]}  Rf4 {[%clk 0:00:36]} 63. Rb5 {[%clk 0:00:15]}  Kf8 {[%clk 0:00:35]} 64. Rb6 {[%clk 0:00:14]}  Kg7 {[%clk 0:00:34]} 65. Rb5 {[%clk 0:00:14]}  Kf8 {[%clk 0:00:32]} 66. Rb6 {[%clk 0:00:15]}  Kg7 {[%clk 0:00:29]} 67. Rb5 {[%clk 0:00:15]} 1/2-1/2

[Event "January 2 Early 2024"]
[Site "https://www.chess.com"]
[Date "2024.01.02"]
[Round "5"]
[White "Aaditya Dhingra"]
[Black "Morales Garcia, Sergio Joshafatt"]
[Result "1-0"]
[Board "136"]
[TimeControl "180+1"]
[WhiteFideId "25678191"]
[BlackFideId "5106249"]
[WhiteElo "2599"]
[BlackElo "2441"]
[WhiteTeam "IND"]
[BlackTeam "MEX"]
[WhiteClock "0:01:02"]
[BlackClock "0:00:00"]

1. e4 {[%clk 0:02:35]}  c5 {[%clk 0:02:58]} 2. Nf3 {[%clk 0:02:33]}  e6 {[%clk 0:02:58]} 3. c3 {[%clk 0:02:31]}  Nf6 {[%clk 0:02:57]} 4. e5 {[%clk 0:02:26]}  Nd5 {[%clk 0:02:57]} 5. d4 {[%clk 0:02:27]}  cxd4 {[%clk 0:02:58]} 6. cxd4 {[%clk 0:02:26]}  d6 {[%clk 0:02:58]} 7. Bc4 {[%clk 0:02:23]}  Nc6 {[%clk 0:02:58]} 8. O-O {[%clk 0:02:22]}  Be7 {[%clk 0:02:57]} 9. a3 {[%clk 0:02:21]}  O-O {[%clk 0:02:54]} 10. Qe2 {[%clk 0:02:21]}  b6 {[%clk 0:02:40]} 11. Rd1 {[%clk 0:02:20]}  Bb7 {[%clk 0:02:32]} 12. Nbd2 {[%clk 0:02:16]}  Na5 {[%clk 0:02:23]} 13. Ba2 {[%clk 0:02:15]}  Nf4 {[%clk 0:01:54]} 14. Qe3 {[%clk 0:02:09]}  Bg5 {[%clk 0:01:54]} 15. Nxg5 {[%clk 0:02:03]}  Qxg5 {[%clk 0:01:51]} 16. g3 {[%clk 0:01:57]}  Qh5 {[%clk 0:01:34]} 17. f3 {[%clk 0:01:51]}  Nd5 {[%clk 0:01:21]} 18. Qf2 {[%clk 0:01:47]}  dxe5 {[%clk 0:01:21]} 19. dxe5 {[%clk 0:01:46]}  Rfd8 {[%clk 0:01:12]} 20. Ne4 {[%clk 0:01:44]}  Qxe5 {[%clk 0:01:08]} 21. Bg5 {[%clk 0:01:34]}  f6 {[%clk 0:01:01]} 22. Bd2 {[%clk 0:01:28]}  Rac8 {[%clk 0:00:46]} 23. Bxa5 {[%clk 0:01:26]}  bxa5 {[%clk 0:00:47]} 24. Rac1 {[%clk 0:01:24]}  Rxc1 {[%clk 0:00:35]} 25. Rxc1 {[%clk 0:01:24]}  Nb6 {[%clk 0:00:35]} 26. Nc5 {[%clk 0:01:18]}  Bd5 {[%clk 0:00:30]} 27. Re1 {[%clk 0:01:17]}  Qd6 {[%clk 0:00:20]} 28. Nb7 {[%clk 0:01:03]}  Bxb7 {[%clk 0:00:00]} 29. Rxe6 {[%clk 0:01:02]} 1-0